bitfinex-derivatives/quotes_BTCF0:USTF0_20241218
["timestamp","ask_amount","ask_price","bid_price","bid_amount"]
[1734554352160,0.3628,100890.0,100870.0,0.0497195]
[1734554352351,0.3628,100890.0,100870.0,0.4105195]
[1734554352352,0.412385,100890.0,100870.0,0.4105195]
[1734554352548,0.411385,100890.0,100870.0,0.4125195]
[1734554352953,0.410389,100880.0,100870.0,0.0021285]
[1734554353153,0.411389,100880.0,100870.0,0.0021285]
[1734554353361,0.711389,100880.0,100870.0,0.01637031]
[1734554353554,0.410389,100880.0,100870.0,0.01437031]
[1734554353759,0.7114753,100880.0,100870.0,0.00100031]
[1734554353956,0.97345777,100880.0,100870.0,0.00100031]
[1734554354157,0.049614,100830.0,100820.0,0.1860182]
[1734554354462,0.74888505,100830.0,100820.0,0.10016017]
[1734554354963,0.74888505,100830.0,100820.0,0.02335997]
[1734554355161,0.74901186,100830.0,100820.0,9.7e-07]
[1734554355357,0.75001186,100830.0,100820.0,0.00100097]
[1734554355861,1.05001186,100830.0,100800.0,0.39325244]
[1734554356160,0.771223,100810.0,100800.0,0.39325244]
[1734554356659,0.771223,100810.0,100800.0,0.10012097]
[1734554359658,0.771223,100810.0,100800.0,0.10062097]
[1734554360551,0.7216,100810.0,100800.0,0.15024897]
[1734554360752,0.3608,100820.0,100810.0,0.049623]
[1734554360960,0.36092681,100830.0,100820.0,0.049618]
[1734554361170,0.049621,100820.0,100800.0,0.41223044]
[1734554361357,0.049623,100810.0,100800.0,0.15024797]
[1734554361557,0.049623,100810.0,100800.0,0.10062097]
[1734554361558,0.410423,100810.0,100800.0,0.10062097]
[1734554361760,0.049623,100810.0,100800.0,0.10062097]
[1734554361963,0.3608,100820.0,100800.0,0.15024497]
[1734554362263,0.410423,100810.0,100800.0,0.10062097]
[1734554363063,0.410419,100820.0,100800.0,0.15024497]
[1734554363262,0.410423,100810.0,100800.0,0.10062097]
[1734554363461,0.049623,100810.0,100800.0,0.10062097]
[1734554363765,0.049623,100810.0,100800.0,0.10012097]
[1734554363766,0.410423,100810.0,100800.0,0.10012097]
[1734554364661,0.3608,100810.0,100800.0,0.10012097]
[1734554364862,0.410423,100810.0,100800.0,0.10012097]
[1734554365062,0.414423,100810.0,100800.0,0.10012097]
[1734554365754,0.414423,100810.0,100800.0,0.1143527]
[1734554366764,0.049632,100790.0,100780.0,0.0005]
[1734554366954,0.771232,100790.0,100780.0,0.0005]
[1734554367656,0.771232,100790.0,100780.0,0.00011547]
[1734554367866,0.775232,100790.0,100780.0,0.00011547]
[1734554368165,0.7256,100790.0,100780.0,0.00011547]
[1734554368465,0.410428,100800.0,100780.0,0.61173394]
[1734554368655,0.002,100790.0,100780.0,0.00011547]
[1734554368860,0.412432,100790.0,100780.0,0.00011547]
[1734554369070,0.416432,100790.0,100780.0,0.00011547]
[1734554369460,0.416432,100790.0,100780.0,0.00442291]
[1734554369662,0.412432,100790.0,100780.0,0.00011547]
[1734554370264,0.414432,100790.0,100780.0,0.00011547]
[1734554370872,0.049643,100770.0,100760.0,0.0005]
[1734554371165,0.049656,100750.0,100730.0,0.049662]
[1734554371370,0.410456,100750.0,100730.0,0.049662]
[1734554371662,0.410458,100740.0,100730.0,0.02326397]
[1734554371866,0.410458,100740.0,100730.0,0.04977848]
[1734554372067,0.410458,100740.0,100730.0,0.00011548]
[1734554372266,0.410458,100740.0,100730.0,0.02350249]
[1734554372461,0.410458,100740.0,100730.0,0.02782112]
[1734554372666,0.11252692,100740.0,100730.0,0.63946659]
[1734554372862,8.129e-05,100760.0,100750.0,0.049653]
[1734554373168,0.049634,100790.0,100780.0,0.049638]
[1734554373374,0.049634,100790.0,100780.0,0.004319]
[1734554373667,0.710434,100790.0,100780.0,0.00423771]
[1734554373867,0.049642,100780.0,100750.0,0.31163147]
[1734554374173,9.934e-05,100800.0,100790.0,0.049633]
[1734554374371,9.934e-05,100800.0,100790.0,0.67252924]
[1734554374673,0.049626,100810.0,100800.0,0.049628]
[1734554374971,0.41190764,100820.0,100810.0,0.049623]
[1734554374972,0.3608,100820.0,100810.0,0.049623]
[1734554375170,0.47196142,100830.0,100810.0,0.62278247]
[1734554375370,0.049619,100820.0,100810.0,0.61160547]
[1734554375672,0.3608,100840.0,100830.0,0.049614]
[1734554375673,0.00011522,100840.0,100830.0,0.049614]
[1734554375862,0.72171522,100840.0,100830.0,0.61159647]
[1734554376062,0.410408,100850.0,100830.0,0.63809547]
[1734554376262,0.3608,100860.0,100830.0,0.88848247]
[1734554376570,0.11116142,100880.0,100860.0,0.049599]
[1734554376875,0.22351079,100930.0,100920.0,0.049569]
[1734554377170,0.14664207,100940.0,100930.0,0.049564]
[1734554377372,0.2460512,100950.0,100940.0,0.04956]
[1734554377564,0.30794631,100960.0,100940.0,0.62285942]
[1734554377768,0.3608,100980.0,100940.0,0.87868247]
[1734554378071,0.65820087,100950.0,100930.0,0.00108]
[1734554378270,0.049569,100920.0,100910.0,0.0199219]
[1734554378570,1.01900087,100920.0,100880.0,0.31957054]
[1734554378773,0.0005,100900.0,100890.0,0.62288863]
[1734554379172,0.0005,100900.0,100890.0,0.92288863]
[1734554379679,0.3608,100910.0,100890.0,0.56208863]
[1734554379973,0.00010926,100920.0,100910.0,0.049574]
[1734554380177,0.412354,100960.0,100930.0,0.049564]
[1734554380371,0.412354,100960.0,100940.0,0.410358]
[1734554380372,0.002,100960.0,100940.0,0.410358]
[1734554380579,0.04955,100960.0,100940.0,0.3]
[1734554380771,0.65820087,100960.0,100940.0,0.3]
[1734554380969,0.049555,100950.0,100940.0,0.3]
[1734554381170,0.049555,100950.0,100940.0,0.00010096]
[1734554381370,0.049555,100950.0,100940.0,0.30010096]
[1734554381571,0.36090166,100980.0,100940.0,0.30010096]
[1734554381572,0.3608,100970.0,100940.0,0.30010096]
[1734554381771,0.41044366,100980.0,100960.0,0.3608]
[1734554381971,0.36090166,100980.0,100950.0,0.56198247]
[1734554382181,0.65830253,100980.0,100940.0,0.36090096]
[1734554382382,0.004,100960.0,100950.0,0.67233647]
[1734554382569,0.00010166,100980.0,100950.0,0.92278247]
[1734554382774,0.00010166,100980.0,100970.0,0.26198247]
[1734554382970,0.36320422,100990.0,100970.0,0.26198247]
[1734554383177,0.002,100980.0,100970.0,0.3]
[1734554383379,0.002,100980.0,100970.0,0.3608]
[1734554383578,0.410303,101060.0,101010.0,0.049523]
[1734554383880,0.01,101040.0,101020.0,0.62278247]
[1734554384083,0.05158253,101030.0,101020.0,0.26198247]
[1734554384285,0.049525,101010.0,100980.0,0.62278247]
[1734554384589,0.05158553,101030.0,101000.0,0.62278247]
[1734554384879,0.00206653,101030.0,101020.0,0.62278247]
[1734554385070,0.05958253,101030.0,101020.0,0.62378247]
[1734554385277,0.7177834,101030.0,101020.0,0.001]
[1734554385476,0.7177834,101030.0,101010.0,0.36088926]
[1734554385477,0.04952,101020.0,101010.0,0.36088926]
[1734554385872,0.6642674,101030.0,101010.0,8.926e-05]
[1734554385873,0.68070078,101030.0,101010.0,8.926e-05]
[1734554386079,0.04952,101020.0,101010.0,8.926e-05]
[1734554386273,0.70772087,101020.0,101010.0,8.926e-05]
[1734554386577,0.70772087,101020.0,100970.0,0.01954305]
[1734554386872,0.049537,100990.0,100980.0,0.26198247]
[1734554387074,0.049545,100970.0,100960.0,0.23348965]
[1734554387283,0.60871121,100970.0,100960.0,0.23348965]
[1734554387483,0.04955,100960.0,100940.0,0.0008]
[1734554387783,0.04957,100920.0,100910.0,0.23348965]
[1734554387972,0.41037,100920.0,100910.0,0.23348965]
[1734554388173,0.87071868,100920.0,100910.0,0.23359185]
[1734554388572,0.19836621,100910.0,100870.0,0.88077127]
[1734554388789,0.049586,100890.0,100870.0,0.3]
[1734554389083,0.049593,100880.0,100860.0,0.38055913]
[1734554389276,0.410375,100910.0,100860.0,0.68055913]
[1734554389277,0.3608,100890.0,100860.0,0.68055913]
[1734554389474,0.19848331,100880.0,100850.0,0.65393147]
[1734554389682,0.0001171,100880.0,100870.0,0.3608]
[1734554389982,0.0497061,100880.0,100870.0,0.3608]
[1734554390178,0.049594,100870.0,100860.0,7.587e-05]
[1734554390373,0.60876021,100870.0,100860.0,7.587e-05]
[1734554390882,0.24796021,100870.0,100860.0,7.587e-05]
[1734554391280,0.55916621,100870.0,100830.0,0.049614]
[1734554391481,0.049609,100840.0,100830.0,0.3608]
[1734554391683,0.24797921,100840.0,100810.0,0.410422]
[1734554391885,0.24797921,100840.0,100800.0,1.02278247]
[1734554391886,0.19836621,100840.0,100800.0,1.02278247]
[1734554392183,0.049616,100830.0,100820.0,0.3608]
[1734554392383,0.3608,100860.0,100820.0,0.62285348]
[1734554392585,0.049611,100840.0,100820.0,0.34968801]
[1734554392887,0.001,100840.0,100830.0,0.410414]
[1734554393082,0.002,100840.0,100830.0,0.410414]
[1734554393285,0.0496,100860.0,100830.0,1.02704]
[1734554393579,0.04961,100840.0,100820.0,0.62285348]
[1734554393780,0.04961,100840.0,100820.0,0.61167048]
[1734554394086,0.24797621,100840.0,100820.0,0.41048801]
[1734554394285,0.050614,100830.0,100820.0,0.41148801]
[1734554394479,0.19729013,100840.0,100820.0,0.41148801]
[1734554394678,0.74001065,100860.0,100830.0,0.3608]
[1734554394878,0.24690413,100830.0,100820.0,0.00307101]
[1734554395275,0.24690413,100830.0,100820.0,0.00107101]
[1734554395582,0.24690413,100830.0,100810.0,0.00136]
[1734554395583,0.60870413,100830.0,100810.0,0.00136]
[1734554395787,0.60770813,100820.0,100800.0,0.1]
[1734554395975,0.24691313,100810.0,100800.0,0.1]
[1734554396182,0.049635,100790.0,100770.0,0.3608]
[1734554396476,0.19729013,100790.0,100780.0,0.00011127]
[1734554396673,0.00010675,100800.0,100790.0,0.050133]
[1734554396881,0.00010675,100800.0,100790.0,0.771733]
[1734554397078,0.00010675,100800.0,100790.0,0.710933]
[1734554397283,0.00010675,100800.0,100790.0,0.771733]
[1734554397485,0.24702488,100800.0,100790.0,0.0005]
[1734554397676,0.049633,100790.0,100780.0,0.00011127]
[1734554397877,0.60772313,100790.0,100780.0,0.00011127]
[1734554398070,0.62613378,100790.0,100780.0,0.01405554]
[1734554398287,0.24692313,100790.0,100780.0,0.00011127]
[1734554398475,0.62613378,100790.0,100780.0,0.00011127]
[1734554398879,0.00010675,100800.0,100780.0,0.26209374]
[1734554399082,0.00010675,100800.0,100780.0,0.56709374]
[1734554399281,0.42882265,100840.0,100810.0,0.049621]
[1734554399489,0.19729013,100810.0,100800.0,0.3608]
[1734554399784,0.049628,100800.0,100790.0,0.0005]
[1734554399984,0.62612678,100810.0,100790.0,0.3613]
[1734554400185,0.60771813,100800.0,100790.0,0.0005]
[1734554400481,0.19735953,100800.0,100790.0,0.050133]
[1734554400685,0.24698753,100800.0,100790.0,0.3608]
[1734554400886,0.049633,100790.0,100780.0,0.36091127]
[1734554401083,0.24692313,100790.0,100780.0,0.00011127]
[1734554401283,0.24692313,100790.0,100780.0,0.36091127]
[1734554401592,0.42890905,100800.0,100780.0,0.00011127]
[1734554401780,6.94e-05,100800.0,100790.0,0.050133]
[1734554401980,0.0496974,100800.0,100790.0,0.0005]
[1734554402182,0.0496974,100800.0,100770.0,0.049642]
[1734554402183,0.049633,100790.0,100750.0,0.28648775]
[1734554402486,0.24693713,100760.0,100750.0,0.01394735]
[1734554402788,0.60773713,100760.0,100750.0,0.01394735]
[1734554402978,0.62564778,100760.0,100750.0,0.01394735]
[1734554403179,0.73951065,100780.0,100750.0,0.01402295]
[1734554403375,0.19729013,100760.0,100750.0,0.27600542]
[1734554403579,0.60773713,100760.0,100750.0,0.01402295]
[1734554403985,0.049664,100730.0,100700.0,0.159676]
[1734554404185,0.24695413,100730.0,100700.0,0.48299593]
[1734554404380,0.24695413,100730.0,100710.0,0.2813515]
[1734554404580,0.049664,100730.0,100710.0,0.2813515]
[1734554404786,0.24695513,100730.0,100710.0,0.30467143]
[1734554404977,0.24695513,100730.0,100720.0,0.36089259]
[1734554405177,0.62566578,100730.0,100720.0,5.2e-07]
[1734554405378,0.050665,100730.0,100720.0,5.2e-07]
[1734554405579,0.24895513,100730.0,100720.0,5.2e-07]
[1734554405780,0.24895513,100730.0,100720.0,0.36080052]
[1734554405985,0.60975513,100730.0,100720.0,5.2e-07]
[1734554406198,0.24907338,100730.0,100720.0,0.00010148]
[1734554406690,0.24807338,100730.0,100720.0,0.00010148]
[1734554406881,0.60987338,100730.0,100720.0,0.00010148]
[1734554407085,0.66291825,100730.0,100660.0,0.01448105]
[1734554407285,0.3608,100700.0,100670.0,0.02009765]
[1734554407590,0.049685,100680.0,100650.0,0.31168147]
[1734554407787,0.13697113,100690.0,100670.0,0.62278247]
[1734554407986,0.73351017,100690.0,100660.0,0.3608]
[1734554408188,0.13697513,100680.0,100670.0,0.00011004]
[1734554408490,0.49777513,100680.0,100670.0,0.00211004]
[1734554408793,0.049697,100660.0,100630.0,0.31169147]
[1734554408982,0.3608,100670.0,100640.0,0.01945336]
[1734554409181,0.3608,100670.0,100600.0,1.00593743]
[1734554409182,0.08729013,100620.0,100600.0,1.00593743]
[1734554409387,0.771302,100650.0,100600.0,1.35566143]
[1734554409388,0.13700413,100630.0,100600.0,1.35566143]
[1734554409591,0.049716,100620.0,100610.0,8.971e-05]
[1734554410289,9.657e-05,100660.0,100610.0,0.30008971]
[1734554410504,9.657e-05,100660.0,100640.0,0.410502]
[1734554410681,0.37491017,100680.0,100650.0,0.26206731]
[1734554410682,0.0022,100680.0,100650.0,0.26206731]
[1734554410991,0.0022,100680.0,100650.0,8.484e-05]
[1734554410992,0.049695,100660.0,100650.0,8.484e-05]
[1734554411197,0.08729013,100660.0,100650.0,8.484e-05]
[1734554411386,0.049692,100670.0,100650.0,0.04978484]
[1734554411584,0.001,100660.0,100650.0,8.484e-05]
[1734554411786,0.13810682,100660.0,100650.0,8.484e-05]
[1734554411985,0.44921182,100660.0,100620.0,0.049715]
[1734554412185,0.44921182,100660.0,100610.0,0.28156504]
[1734554412186,0.049715,100620.0,100610.0,0.28156504]
[1734554412385,0.08729013,100630.0,100610.0,0.99208304]
[1734554412386,0.049711,100630.0,100610.0,0.99208304]
[1734554412591,0.44809013,100640.0,100620.0,0.049712]
[1734554412592,0.049706,100640.0,100620.0,0.049712]
[1734554412791,0.13699613,100640.0,100620.0,0.049712]
[1734554412990,0.049706,100640.0,100630.0,8.136e-05]
[1734554413196,0.410506,100640.0,100630.0,8.136e-05]
[1734554413387,0.13699613,100640.0,100630.0,0.26206383]
[1734554413592,0.49779613,100640.0,100630.0,8.136e-05]
[1734554414003,0.13699613,100640.0,100630.0,8.136e-05]
[1734554414493,0.050706,100640.0,100630.0,8.136e-05]
[1734554414695,0.002,100640.0,100630.0,0.04979236]
[1734554414885,0.002,100640.0,100630.0,1.33337483]
[1734554415091,0.002,100640.0,100630.0,0.61177483]
[1734554415286,0.002,100640.0,100630.0,0.31177483]
[1734554415489,0.002,100640.0,100630.0,0.69574846]
[1734554415694,0.002,100640.0,100630.0,0.63494846]
[1734554415992,0.00012169,100660.0,100650.0,0.049704]
[1734554416197,0.00012169,100660.0,100650.0,0.08735007]
[1734554416389,0.00012169,100660.0,100650.0,0.71013254]
[1734554416794,0.00012169,100660.0,100650.0,0.32615891]
[1734554417101,0.0022,100680.0,100650.0,1.0597072]
[1734554417295,0.42238617,100710.0,100690.0,0.049681]
[1734554417490,0.13696913,100700.0,100670.0,0.2662605]
[1734554417696,0.13696913,100700.0,100680.0,0.049687]
[1734554417904,0.13697913,100680.0,100670.0,0.0188144]
[1734554418099,0.049694,100670.0,100660.0,0.0005]
[1734554418400,0.410494,100670.0,100630.0,0.049712]
[1734554418594,0.3608,100660.0,100630.0,0.27712582]
[1734554418799,0.08244817,100650.0,100640.0,0.049709]
[1734554418993,0.13215717,100640.0,100630.0,0.049713]
[1734554419303,0.04972,100620.0,100600.0,0.14879072]
[1734554419491,0.08244817,100610.0,100600.0,0.14879072]
[1734554419691,0.08244817,100610.0,100600.0,0.16394251]
[1734554419888,0.13217217,100610.0,100600.0,0.11421751]
[1734554420088,0.08244817,100610.0,100600.0,0.14879372]
[1734554420295,0.08244817,100610.0,100600.0,0.14888067]
[1734554420500,0.08244817,100610.0,100600.0,0.5278425]
[1734554420696,0.08344817,100610.0,100600.0,0.15188067]
[1734554420899,0.001,100610.0,100600.0,0.71086314]
[1734554421198,0.04983794,100630.0,100600.0,0.36413514]
[1734554421391,0.08244817,100620.0,100610.0,0.049722]
[1734554421587,0.34949374,100630.0,100620.0,0.049719]
[1734554421795,0.34949374,100630.0,100620.0,0.050219]
[1734554421995,0.00012394,100630.0,100620.0,0.06539103]
[1734554422196,0.00012394,100630.0,100620.0,0.050219]
[1734554422498,0.08257211,100630.0,100620.0,0.050219]
[1734554422700,0.08257211,100630.0,100620.0,0.052719]
[1734554422892,0.08357211,100630.0,100620.0,0.052719]
[1734554423087,0.49408611,100630.0,100620.0,0.003]
[1734554423291,0.08357211,100630.0,100620.0,0.052719]
[1734554423490,0.49308611,100630.0,100620.0,0.052719]
[1734554423694,0.84245591,100630.0,100620.0,0.01819955]
[1734554423900,0.00012394,100630.0,100620.0,0.052719]
[1734554424094,0.00012394,100630.0,100620.0,0.61470147]
[1734554424402,0.00012394,100630.0,100620.0,0.413519]
[1734554424600,0.39920774,100630.0,100620.0,0.052719]
[1734554424787,0.48165591,100630.0,100620.0,0.413519]
[1734554424993,0.00012394,100630.0,100620.0,1.03630147]
[1734554425193,0.08257211,100630.0,100620.0,0.62278247]
[1734554425398,0.00012394,100630.0,100620.0,0.31170147]
[1734554425690,0.13228611,100630.0,100620.0,0.049719]
[1734554425893,0.48165791,100630.0,100620.0,0.049719]
[1734554426094,0.00012394,100630.0,100620.0,0.61170147]
[1734554426297,0.049708,100650.0,100630.0,0.049713]
[1734554426501,0.08244817,100640.0,100630.0,0.049713]
[1734554426798,0.13215717,100640.0,100630.0,0.049713]
[1734554427002,0.7101698,100660.0,100630.0,0.349713]
[1734554427190,0.43181797,100660.0,100650.0,0.049704]
[1734554427390,0.41206776,100680.0,100650.0,0.04981954]
[1734554427598,0.49451493,100680.0,100670.0,0.049694]
[1734554427795,0.049699,100660.0,100650.0,0.04981854]
[1734554427997,0.00157776,100680.0,100650.0,0.04981854]
[1734554428197,0.08244817,100670.0,100660.0,0.049697]
[1734554428398,0.49294217,100670.0,100660.0,0.049697]
[1734554428595,0.00157776,100680.0,100670.0,0.049694]
[1734554428804,8.651e-05,100680.0,100670.0,0.049694]
[1734554429102,8.651e-05,100680.0,100670.0,0.710494]
[1734554429301,2.410481,100700.0,100670.0,1.07142057]
[1734554429302,2.0,100700.0,100670.0,1.07142057]
[1734554429508,2.13212717,100700.0,100680.0,0.3608]
[1734554429800,2.13212717,100700.0,100670.0,0.36092657]
[1734554429801,0.13213717,100680.0,100670.0,0.00012657]
[1734554430000,0.049699,100660.0,100650.0,0.049704]
[1734554430204,0.049705,100650.0,100620.0,0.66042021]
[1734554430395,0.49295317,100650.0,100640.0,0.049709]
[1734554430699,0.410505,100650.0,100640.0,0.64758539]
[1734554430904,0.71024586,100670.0,100640.0,0.59796111]
[1734554431203,0.049699,100660.0,100650.0,0.049703]
[1734554431402,0.049702,100660.0,100650.0,0.08815501]
[1734554431606,7.606e-05,100670.0,100660.0,0.049699]
[1734554431902,2.001,100700.0,100690.0,0.049684]
[1734554432105,0.52958348,100700.0,100690.0,0.61166647]
[1734554432299,0.50375208,100700.0,100690.0,0.62650164]
[1734554432606,0.50375208,100700.0,100690.0,0.97246647]
[1734554432805,0.50375208,100700.0,100690.0,0.67246647]
[1734554432993,0.94700025,100700.0,100690.0,7.227e-05]
[1734554433303,0.50375208,100700.0,100690.0,0.0660564]
[1734554433505,0.63587925,100700.0,100690.0,0.0660564]
[1734554433701,0.99667925,100700.0,100690.0,0.0163724]
[1734554433905,0.99667925,100700.0,100680.0,0.29313147]
[1734554434098,0.049689,100680.0,100660.0,0.03763774]
[1734554434300,0.049689,100680.0,100650.0,0.41102659]
[1734554434301,0.049699,100660.0,100650.0,0.44866433]
[1734554434504,0.410499,100660.0,100650.0,0.07333866]
[1734554434806,0.049699,100660.0,100650.0,0.1109764]
[1734554435000,0.049699,100660.0,100650.0,0.06138756]
[1734554435195,0.3608,100670.0,100650.0,0.06138756]
[1734554435395,0.410495,100670.0,100660.0,0.049699]
[1734554435596,0.3608,100670.0,100660.0,0.03763774]
[1734554435797,0.3608,100670.0,100650.0,0.0377529]
[1734554436001,0.002,100660.0,100650.0,0.64943937]
[1734554436502,0.003,100670.0,100660.0,0.049699]
[1734554436711,0.008,100670.0,100660.0,0.09279599]
[1734554436895,0.008,100670.0,100660.0,0.35477846]
[1734554437102,0.3688,100670.0,100660.0,0.31168147]
[1734554437301,0.36091958,100680.0,100670.0,0.049694]
[1734554437496,0.41060858,100680.0,100670.0,0.049694]
[1734554437805,0.41060858,100680.0,100670.0,0.04979116]
[1734554438002,0.71060858,100680.0,100670.0,9.716e-05]
[1734554438396,0.41060858,100680.0,100670.0,0.04979116]
[1734554438601,0.71060858,100680.0,100670.0,0.04979116]
[1734554438805,0.71160858,100680.0,100670.0,9.716e-05]
[1734554439308,0.71160858,100680.0,100670.0,0.04979116]
[1734554439508,0.66191958,100680.0,100670.0,0.04979116]
[1734554439713,0.41260858,100680.0,100670.0,9.716e-05]
[1734554440014,0.410499,100660.0,100640.0,0.0691234]
[1734554440206,0.410499,100660.0,100650.0,0.049704]
[1734554440407,1.04892829,100660.0,100650.0,0.049704]
[1734554440604,1.0216,100660.0,100620.0,0.26030256]
[1734554440812,0.3608,100650.0,100640.0,0.049705]
[1734554441107,0.771304,100650.0,100640.0,0.00435321]
[1734554441315,1.071304,100650.0,100640.0,0.05406221]
[1734554441703,0.7216,100650.0,100640.0,0.31604468]
[1734554441901,0.3618,100660.0,100650.0,0.049704]
[1734554442107,0.3608,100660.0,100650.0,0.05415242]
[1734554442411,0.11227417,100690.0,100680.0,0.049689]
[1734554442607,0.47307417,100690.0,100680.0,0.05404221]
[1734554442804,0.46195817,100690.0,100680.0,0.00435321]
[1734554443009,0.82275817,100690.0,100680.0,0.00435321]
[1734554443212,0.001,100660.0,100640.0,0.002]
[1734554443513,0.411499,100660.0,100650.0,0.0497]
[1734554443702,0.411499,100660.0,100650.0,0.0497918]
[1734554444111,0.710499,100660.0,100650.0,9.18e-05]
[1734554444302,0.411499,100660.0,100650.0,0.0537958]
[1734554444504,0.411499,100660.0,100650.0,0.0040918]
[1734554444705,0.411499,100660.0,100650.0,0.0537958]
[1734554444907,0.710499,100660.0,100650.0,9.18e-05]
[1734554445109,0.410499,100660.0,100650.0,0.0517958]
[1734554445308,0.710499,100660.0,100650.0,0.0020918]
[1734554445708,0.710499,100660.0,100650.0,0.0547958]
[1734554445904,0.3608,100660.0,100650.0,0.0547958]
[1734554446113,0.3608,100660.0,100650.0,0.33095205]
[1734554446309,0.3608,100660.0,100650.0,0.31677827]
[1734554446515,0.32973501,100660.0,100650.0,0.31456816]
[1734554446711,0.62973501,100660.0,100650.0,0.003]
[1734554446912,0.37943401,100660.0,100650.0,0.01719777]
[1734554447120,0.32973501,100660.0,100650.0,0.32888424]
[1734554447310,0.36090653,100680.0,100670.0,0.049694]
[1734554447511,0.00010653,100680.0,100670.0,0.31179949]
[1734554447724,0.16343646,100720.0,100710.0,0.049674]
[1734554448015,4.9e-07,100720.0,100710.0,0.31165647]
[1734554448316,0.00148969,100760.0,100710.0,0.31165647]
[1734554448317,0.19299013,100780.0,100730.0,0.037]
[1734554448525,0.19299013,100780.0,100770.0,0.31162747]
[1734554448813,0.19299013,100780.0,100770.0,0.31173676]
[1734554449025,0.85379013,100780.0,100770.0,0.00010929]
[1734554449204,0.049646,100770.0,100750.0,0.049655]
[1734554449406,0.049651,100760.0,100740.0,0.049659]
[1734554449609,0.3608,100760.0,100750.0,0.049655]
[1734554449808,0.3608,100770.0,100750.0,0.26198247]
[1734554450010,0.3608,100770.0,100760.0,0.04965]
[1734554450216,0.008,100780.0,100770.0,0.049645]
[1734554450415,0.4608,100800.0,100790.0,0.049635]
[1734554450416,1e-06,100800.0,100790.0,0.049635]
[1734554450620,3e-08,100820.0,100810.0,0.049625]
[1734554450919,0.01,100860.0,100850.0,0.049605]
[1734554451118,0.01,100860.0,100830.0,0.62890247]
[1734554451420,0.049608,100850.0,100820.0,0.00148787]
[1734554451716,0.3708,100860.0,100850.0,0.049605]
[1734554451920,0.7204,100860.0,100850.0,0.23567643]
[1734554452223,0.03887685,100840.0,100830.0,0.20763648]
[1734554452420,0.76047685,100840.0,100830.0,0.20763648]
[1734554452610,0.76047685,100840.0,100780.0,0.29707958]
[1734554452611,1.06047685,100840.0,100780.0,0.29707958]
[1734554452814,0.3608,100790.0,100780.0,0.36687114]
[1734554453014,0.3608,100790.0,100780.0,0.049638]
[1734554453217,0.00148879,100820.0,100780.0,0.66092384]
[1734554453413,0.049625,100810.0,100790.0,0.26198247]
[1734554453617,0.43302775,100830.0,100790.0,0.26198247]
[1734554453823,0.00012775,100830.0,100820.0,0.04962]
[1734554454016,0.001,100840.0,100830.0,0.049615]
[1734554454323,0.01,100860.0,100830.0,0.62278247]
[1734554454518,0.3608,100850.0,100830.0,0.3608]
[1734554454828,0.049608,100850.0,100820.0,0.26198247]
[1734554455016,0.01,100860.0,100850.0,0.049605]
[1734554455217,5.6e-07,100890.0,100880.0,0.049591]
[1734554455522,5.6e-07,100900.0,100890.0,0.049586]
[1734554455719,5.6e-07,100900.0,100890.0,0.410386]
[1734554455927,5.6e-07,100900.0,100890.0,0.049586]
[1734554456117,0.049586,100890.0,100860.0,0.67974656]
[1734554456421,0.3608,100890.0,100870.0,0.04971997]
[1734554456624,7.57e-05,100900.0,100870.0,0.30012597]
[1734554456811,0.3608,100890.0,100870.0,0.00012597]
[1734554457016,0.410391,100880.0,100870.0,0.00012597]
[1734554457719,0.3608,100880.0,100870.0,0.00012597]
[1734554458123,0.3638,100880.0,100870.0,0.00012597]
[1734554458328,0.413391,100880.0,100870.0,0.00012597]
[1734554458522,0.38067827,100880.0,100870.0,0.00012597]
[1734554458933,0.3638,100880.0,100870.0,0.00012597]
[1734554459230,0.3678,100880.0,100870.0,0.00012597]
[1734554459423,0.3678,100880.0,100870.0,0.04972197]
[1734554459619,0.417391,100880.0,100870.0,0.00012597]
[1734554459827,0.3648,100880.0,100870.0,0.00012597]
[1734554460028,0.417391,100880.0,100870.0,0.00012597]
[1734554461038,0.049606,100850.0,100830.0,0.410413]
[1734554461220,0.3608,100840.0,100820.0,0.049619]
[1734554461526,0.3608,100830.0,100810.0,0.049622]
[1734554461735,0.7216,100820.0,100800.0,0.00154]
[1734554461932,0.410425,100810.0,100800.0,0.00154]
[1734554462230,0.410425,100810.0,100750.0,0.0042481]
[1734554462231,0.77828971,100810.0,100750.0,0.0042481]
[1734554462540,0.67243347,100760.0,100740.0,0.04966]
[1734554462721,0.3608,100750.0,100720.0,0.35132578]
[1734554463036,0.3608,100740.0,100720.0,0.35132578]
[1734554463227,0.3608,100740.0,100730.0,0.04973909]
[1734554463836,0.3608,100770.0,100760.0,0.04965]
[1734554464127,0.00148945,100790.0,100760.0,0.67815247]
[1734554464331,0.36088971,100810.0,100800.0,0.04963]
[1734554464533,0.0005,100830.0,100820.0,0.04962]
[1734554464723,0.0005,100830.0,100820.0,0.31160247]
[1734554464920,0.3608,100830.0,100820.0,0.26198247]
[1734554465124,0.3608,100830.0,100810.0,0.049622]
[1734554465331,0.410422,100820.0,100800.0,0.31161147]
[1734554465526,0.410422,100820.0,100800.0,0.049629]
[1734554465527,0.00011791,100820.0,100800.0,0.049629]
[1734554465838,0.049634,100800.0,100760.0,0.001]
[1734554466033,0.7216,100770.0,100750.0,0.049654]
[1734554466342,0.049666,100730.0,100710.0,0.33920047]
[1734554466521,0.049666,100730.0,100710.0,0.28952647]
[1734554466522,0.410469,100720.0,100710.0,0.28952647]
[1734554467041,0.00011509,100720.0,100710.0,0.33928993]
[1734554467427,0.00011509,100720.0,100710.0,8.946e-05]
[1734554467626,9e-08,100720.0,100710.0,0.67354593]
[1734554467827,9e-08,100720.0,100710.0,0.05076346]
[1734554469038,9e-08,100720.0,100710.0,0.31574593]
[1734554469240,0.00100009,100720.0,100710.0,0.97554593]
[1734554469536,9e-08,100720.0,100710.0,0.61474593]
[1734554469739,9e-08,100720.0,100710.0,0.97554593]
[1734554469938,0.80714632,100750.0,100720.0,0.049666]
[1734554470238,0.3608,100730.0,100710.0,0.00408946]
[1734554470432,0.36088535,100730.0,100710.0,0.00408946]
[1734554470635,0.049669,100720.0,100710.0,0.00408946]
[1734554471034,0.710469,100720.0,100710.0,0.00408946]
[1734554471237,1.107369,100720.0,100710.0,0.00408946]
[1734554471538,1.0577,100720.0,100690.0,0.00149]
[1734554471733,0.3608,100700.0,100690.0,0.051174]
[1734554471935,0.3608,100700.0,100690.0,0.31315647]
[1734554472241,0.811373,100720.0,100700.0,0.049678]
[1734554472435,0.3608,100710.0,100700.0,0.049678]